fUST/lending_fUST_20260121
["ID","MTS","AMOUNT","RATE_DAILY","PERIOD"]
[402898020,1768959040384,-1037.105438,0.00017734,7]
[402898021,1768959040394,-8064.062564,0.00017734,7]
[402898022,1768959040403,-393.896137,0.00017734,7]
[402898023,1768959040413,-348.12753,0.00017734,7]
[402898024,1768959040423,-686.0,0.0001777,2]
[402898025,1768959040432,-1459.871817,0.0001777,7]
[402898026,1768959040442,-345.051137,0.0001777,7]
[402898027,1768959040452,-285.871266,0.0001777,7]
[402898028,1768959040461,-168.0,0.00017782,2]
[402898029,1768959040470,-19583.654908,0.00017782,7]
[402898030,1768959040480,-220.796,0.00017782,7]
[402898031,1768959040491,-564.2365,0.000178,2]
[402898032,1768959040501,-168.0,0.00017803,2]
[402898033,1768959040510,-380.0,0.00017805,2]
[402898034,1768959040520,-150.04453344,0.00017808,2]
[402898035,1768959040530,-251.289756,0.00017822,7]
[402898036,1768959040539,-248.707933,0.00017822,7]
[402898037,1768959040549,-5000.0,0.00017835,2]
[402898038,1768959040559,-5000.0,0.00017835,2]
[402898039,1768959040568,-5000.0,0.00017835,2]
[402898040,1768959040577,-3816.0,0.00017835,2]
[402898041,1768959040587,-362.975081,0.00017886,7]
[402898042,1768959040597,-2633.12129412,0.00017887,2]
[402898043,1768959040608,-168.0,0.00017887,2]
[402898044,1768959040618,-2258.196806,0.00017887,7]
[402898045,1768959040627,-540.9,0.00017905,2]
[402898046,1768959040636,-470.72858482,0.00017905,2]
[402898047,1768959040645,-686.0,0.00017907,2]
[402898048,1768959040654,-1044.37032667,0.00017933,2]
[402898049,1768959040664,-473.0,0.00017945,2]
[402898050,1768959040674,-48424.630572,0.00017959,7]
[402898051,1768959040683,-286.79107108,0.00017965,32]
[402898052,1768959040692,-239.23799675,0.00017973,3]
[402898053,1768959040702,-5000.0,0.00018,2]
[402898054,1768959040711,-5025.837933,0.00018,7]
[402898055,1768959040720,-157.377174,0.00018,7]
[402898056,1768959040729,-194.23050275,0.00018,2]
[402898057,1768959040738,-1384.33222255,0.00018,2]
[402898058,1768959040747,-892.39118469,0.00018,2]
[402898059,1768959040757,-146390.77211315,0.00018,2]
[402898060,1768959040797,-1462.56622869,0.00018,2]
[402898061,1768959040809,-4303.83456713,0.00018,2]
[402898062,1768959040818,-1361.70772757,0.00018,2]
[402898063,1768959040827,-249.96458799,0.00018,2]
[402898064,1768959040836,-1537.74389476,0.00018,2]
[402898065,1768959040847,-264.78441052,0.00018,2]
[402898066,1768959040856,-1000.0,0.00018,2]
[402898067,1768959040865,-200.99579699,0.00018,2]
[402898068,1768959040874,-686.0,0.00018044,2]
[402898069,1768959040883,-686.0,0.00018181,2]
[402898070,1768959040894,-1226.48669435,0.00018189,2]
[402898090,1768959042973,-1272.298,0.00016879,2]
[402898091,1768959042984,-882.45,0.00017972,3]
[402898092,1768959042993,-2446.09112042,0.00018189,2]
[402898093,1768959043005,-1118.42218523,0.00018189,2]
[402898094,1768959043014,-224.11164834,0.000182,2]
[402898095,1768959043024,-247.69616643,0.000182,2]
[402898098,1768959043078,-3756.8892209,0.000182,2]
[402898099,1768959043087,-1371.62369297,0.000182,2]
[402898100,1768959043096,-249.96458799,0.000182,2]
[402898101,1768959043105,-442.81646,0.000182,7]
[402898102,1768959043114,-438.87021569,0.00018254,11]
[402898103,1768959043122,-514.84070869,0.00018262,2]
[402898104,1768959043132,-192.39201166,0.00018262,2]
[402898105,1768959043141,-2487.15318209,0.00018262,2]
[402898106,1768959043149,-686.0,0.00018318,2]
[402898107,1768959043159,-3849.05891798,0.0001834,2]
[402898108,1768959043170,-26.94108202,0.0001834,2]
[402898109,1768959043179,-269.09891798,0.000184,2]
[402898110,1768959043190,-147.50872867,0.000184,2]
[402898111,1768959043199,-1384.33222255,0.000184,2]
[402898112,1768959043208,-7756.14514439,0.000184,2]
[402898113,1768959043217,-470.72858482,0.00018403,2]
[402898114,1768959043227,-346.97085813,0.00018434,2]
[402898115,1768959043236,-686.0,0.00018455,2]
[402898117,1768959043246,-375.987669,0.00018493,2]
[402898118,1768959043255,-2002.80922808,0.000185,2]
[402898119,1768959043264,-416.60764665,0.000185,2]
[402898120,1768959043273,-1371.62369297,0.000185,2]
[402898121,1768959043282,-24898.89089007,0.000185,7]
[402898123,1768959045950,-1404.72272984,0.000185,7]
[402898124,1768959046071,-22145.20705886,0.000185,7]
[402898287,1768959689509,175.0,0.000154,120]
[402898288,1768959709600,175.0,0.000154,120]
[402898289,1768959733050,175.0,0.000154,120]
[402898291,1768959772267,170.0,0.000154,120]
[402898292,1768959791664,180.0,0.000154,120]
[402898312,1768960231826,-1480.000025,9.359e-05,2]
[402898318,1768960231879,-1622.27553149,9.359e-05,2]
[402898515,1768960238013,-776.78200032,9.359e-05,2]
[402898528,1768960240209,-340.0,9.359e-05,2]
[402898556,1768960243343,-0.68965003,9.359e-05,2]
[402898564,1768960246105,-780.25279316,9.359e-05,2]
[402898565,1768960246114,-948.73780524,9.454e-05,7]
[402898571,1768961238521,4358.42957516,8.884e-05,2]
[402898572,1768961238543,641.57042484,8.884e-05,2]
[402898574,1768961262310,5000.0,8.884e-05,2]
[402898576,1768961284873,4358.43957516,8.884e-05,2]
[402898577,1768961284896,641.56042484,8.884e-05,2]
[402898579,1768961293211,5000.0,8.884e-05,2]
[402898580,1768961308053,4358.44957516,8.884e-05,2]
[402898581,1768961308074,641.55042484,8.884e-05,2]
[402898582,1768961316084,2714.17919057,8.884e-05,2]
[402898583,1768961316126,154.27,8.582e-05,2]
[402898584,1768961331614,5000.0,8.884e-05,2]
[402898585,1768961339459,1490.01038459,8.884e-05,2]
[402898586,1768961339480,821.76961541,8.884e-05,2]
[402898589,1768961354923,5000.0,8.884e-05,2]
[402898590,1768961377408,4178.24038459,8.884e-05,2]
[402898591,1768961377431,821.75961541,8.884e-05,2]
[402898592,1768961385182,5000.0,8.884e-05,2]
[402898593,1768961386073,166.24,8.838e-05,2]
[402898594,1768961401066,4012.01038459,8.884e-05,2]
[402898595,1768961401087,987.98961541,8.884e-05,2]
[402898596,1768961408944,5000.0,8.884e-05,2]
[402898597,1768961423944,4012.02038459,8.884e-05,2]
[402898598,1768961423966,987.97961541,8.884e-05,2]
[402898650,1768961432089,-614.06052921,8.913e-05,4]
[402898652,1768961432099,-220.14352747,8.951e-05,2]
[402898654,1768961432108,-545.0,8.951e-05,2]
[402898656,1768961432118,-5000.0,8.989e-05,2]
[402898658,1768961432127,-189.98,9.166e-05,2]
[402898659,1768961432136,-213.73,9.493e-05,2]
[402898661,1768961432145,-237.48,9.821e-05,2]
[402898663,1768961432155,-300.0,0.0001015,2]
[402898665,1768961432164,-1200.0,0.0001015,2]
[402898667,1768961432173,-518.34747422,0.00010151,2]
[402898669,1768961432183,-14558.1437289,0.00010152,2]
[402898671,1768961432191,-18082.23387005,0.00010628,2]
[402898673,1768961432202,-12860.0420027,0.00010628,2]
[402898676,1768961432213,-876.88425152,0.00010628,2]
[402898681,1768961432254,5000.0,8.884e-05,2]
[402899229,1768961438025,-259.76936242,0.00010951,2]
[402899231,1768961438034,-320.88787901,0.00011364,2]
[402899233,1768961438044,-299.39519736,0.00012951,2]
[402899235,1768961438053,-500.0,0.00013273,2]
[402899237,1768961438062,-500.0,0.00013273,2]
[402899239,1768961438071,-501.08474136,0.00013273,2]
[402899241,1768961438081,-190.621796,0.00013699,2]
[402899243,1768961438090,-150.13676048,0.00013699,2]
[402899245,1768961438099,-510.08920513,0.00013699,2]
[402899266,1768961438279,-1000.0,0.00013821,2]
[402899268,1768961438288,-482.88489579,0.00013821,2]
[402899270,1768961438298,-1500.0,0.00014368,2]
[402899272,1768961438307,-208.63687838,0.00014916,2]
[402899274,1768961438317,-339.02103231,0.00014951,2]
[402899276,1768961438326,-225.592601,0.00015068,2]
[402899278,1768961438335,-171.3753576,0.00015339,2]
[402899280,1768961438344,-178.762,0.000154,2]
[402899282,1768961438353,-3000.0,0.00016,2]
[402899284,1768961438362,-3000.0,0.0001601,2]
[402899286,1768961438371,-3000.0,0.0001602,2]
[402899288,1768961438379,-3000.0,0.0001603,2]
[402899290,1768961438389,-3000.0,0.0001604,2]
[402899292,1768961438399,-3000.0,0.0001605,2]
[402899294,1768961438408,-3000.0,0.0001606,2]
[402899296,1768961438418,-3000.0,0.0001607,2]
[402899298,1768961438426,-3000.0,0.0001608,2]
[402899300,1768961438436,-3000.0,0.0001609,2]
[402899302,1768961438445,-3000.0,0.000161,2]
[402899303,1768961438454,-3000.0,0.0001611,2]
[402899305,1768961438463,-3000.0,0.0001612,2]
[402899307,1768961438473,-3000.0,0.0001613,2]
[402899309,1768961438482,-3000.0,0.0001614,2]
[402899311,1768961438491,-3000.0,0.0001615,2]
[402899313,1768961438500,-3000.0,0.0001616,2]
[402899315,1768961438509,-3000.0,0.0001617,2]
[402899317,1768961438519,-379.12972246,0.0001617,2]
[402899319,1768961438528,-3000.0,0.0001618,2]
[402899321,1768961438537,-3000.0,0.0001619,2]
[402899323,1768961438547,-271.16,0.0001619,3]
[402899325,1768961438556,-813.52,0.0001619,3]
[402899327,1768961438564,-542.32,0.000162,3]
[402899329,1768961438573,-3000.0,0.000162,2]
[402899331,1768961438583,-3000.0,0.0001621,2]
[402899333,1768961438592,-3000.0,0.0001622,2]
[402899335,1768961438601,-3000.0,0.0001623,2]
[402899337,1768961438610,-3000.0,0.0001624,2]
[402899338,1768961438619,-3000.0,0.0001625,2]
[402899340,1768961438629,-3000.0,0.0001626,2]
[402899342,1768961438638,-5000.0,0.00016269,2]
[402899345,1768961438648,-3000.0,0.0001627,2]
[402899346,1768961438660,-3000.0,0.0001628,2]
[402899349,1768961438670,-3000.0,0.0001629,2]
[402899350,1768961438679,-3000.0,0.000163,2]
[402899352,1768961438689,-587.55,0.000163,3]
[402899355,1768961438701,-3000.0,0.0001631,2]
[402899356,1768961438710,-3000.0,0.0001632,2]
[402899358,1768961438720,-3000.0,0.0001633,2]
[402899360,1768961438729,-3000.0,0.0001634,2]
[402899362,1768961438741,-3000.0,0.0001635,2]
[402899364,1768961438750,-3000.0,0.0001636,2]
[402899366,1768961438760,-3000.0,0.0001637,2]
[402899369,1768961438772,-379.12972245,0.00016373,2]
[402899370,1768961438781,-3000.0,0.0001638,2]
[402899373,1768961438791,-3000.0,0.0001639,2]
[402899375,1768961438800,-3000.0,0.000164,2]
[402899377,1768961438809,-3000.0,0.0001641,2]
[402899378,1768961438819,-3000.0,0.0001642,2]
[402899380,1768961438828,-3000.0,0.0001643,2]
[402899382,1768961438838,-500.0,0.00016438,2]
[402899385,1768961438847,-500.0,0.00016438,2]
[402899387,1768961438857,-500.0,0.00016438,2]
[402899389,1768961438867,-500.0,0.00016438,2]
[402899390,1768961438879,-500.0,0.00016438,2]
[402899392,1768961438888,-500.0,0.00016438,2]
[402899394,1768961438897,-500.0,0.00016438,2]
[402899396,1768961438906,-500.0,0.00016438,2]
[402899398,1768961438916,-500.0,0.00016438,2]
[402899400,1768961438925,-500.0,0.00016439,2]
[402899402,1768961438935,-3000.0,0.0001644,2]
[402899404,1768961438944,-184.7,0.0001644,2]
[402899406,1768961438954,-184.7,0.0001644,2]
[402899408,1768961438964,-184.7,0.0001644,2]
[402899410,1768961438973,-3000.0,0.0001645,2]
[402899412,1768961438983,-3000.0,0.0001646,2]
[402899414,1768961438992,-3000.0,0.0001647,2]
[402899416,1768961439001,-3000.0,0.0001648,2]
[402899418,1768961439011,-246.0,0.0001648,2]
[402899420,1768961439021,-3000.0,0.0001649,2]
[402899422,1768961439032,-500.0,0.00016499,2]
[402899424,1768961439042,-3000.0,0.000165,2]
[402899426,1768961439052,-3000.0,0.0001651,2]
[402899428,1768961439061,-3000.0,0.0001652,2]
[402899430,1768961439070,-3000.0,0.0001653,2]
[402899432,1768961439081,-3000.0,0.0001654,2]
[402899435,1768961439094,-246.0,0.00016543,2]
[402899437,1768961439103,-4727.727651,0.0001655,2]
[402899439,1768961439114,-379.12972245,0.00016575,2]
[402899441,1768961439124,-168.0,0.00016649,2]
[402899443,1768961439134,-184.7,0.00016678,2]
[402899446,1768961439154,-246.0,0.00016688,2]
[402899448,1768961439172,-1237.955884,0.00016688,7]
[402899451,1768961439189,-168.0,0.00016732,2]
[402899454,1768961439209,-246.0,0.0001677,2]
[402899457,1768961439230,-3094.889711,0.0001677,7]
[402899460,1768961439269,-6350.447333,0.0001677,7]
[402899463,1768961439286,-2699.056048,0.0001677,7]
[402899466,1768961439303,-379.12972245,0.00016778,2]
[402899469,1768961439318,-2540.178934,0.00016778,7]
[402899471,1768961439334,-404.858407,0.00016778,7]
[402899475,1768961439353,-6747.640122,0.00016789,7]
[402899477,1768961439370,-445.202766,0.00016789,2]
[402899480,1768961439384,-2150.738,0.00016789,2]
[402899483,1768961439401,-537.6845,0.00016789,2]
[402899485,1768961439417,-246.422144,0.00016789,7]
[402899488,1768961439432,-246.0,0.00016793,2]
[402899491,1768961439446,-246.0,0.00016802,2]
[402899494,1768961439468,-378.64686725,0.00016951,2]
[402899496,1768961439483,-246.0,0.00016954,2]
[402899499,1768961439498,-379.12972245,0.0001698,2]
[402899502,1768961439512,-500.0,0.00016982,2]
[402899504,1768961439528,-246.0,0.00016992,2]
[402899507,1768961439543,-210.27898526,0.00017,2]
[402899509,1768961439557,-200.0,0.00017,2]
[402899512,1768961439572,-200.0,0.00017,2]
[402899515,1768961439586,-200.0,0.00017,2]
[402899517,1768961439600,-200.0,0.00017,2]
[402899520,1768961439614,-200.0,0.00017,2]
[402899522,1768961439628,-200.0,0.00017,2]
[402899525,1768961439642,-200.0,0.00017,2]
[402899527,1768961439658,-200.0,0.00017,2]
[402899530,1768961439673,-200.0,0.00017,2]
[402899532,1768961439687,-200.0982317,0.00017,2]
[402899535,1768961439701,-500.0,0.00017038,2]
[402899537,1768961439714,-500.0,0.00017038,2]
[402899540,1768961439729,-500.0,0.00017038,2]
[402899542,1768961439743,-500.0,0.00017038,2]
[402899545,1768961439757,-500.0,0.00017038,2]
[402899547,1768961439772,-500.0,0.00017038,2]
[402899551,1768961439787,-500.0,0.00017038,2]
[402899553,1768961439801,-504.02452176,0.00017038,2]
[402899556,1768961439815,-272428.56416402,0.00017039,2]
[402899559,1768961439834,-109500.0,0.00017039,2]
[402899607,1768961440278,-2214.84339722,0.00017039,2]
[402899609,1768961440295,-112820.42710842,0.00017039,2]
[402899610,1768961440334,-515.67,0.00010841,2]
[402899816,1768961443210,-1803.50616649,0.00010841,2]
[402899817,1768961443410,-848.90023711,0.00010841,2]
[402899825,1768961446120,-1831.9235964,0.00010841,2]
[402899826,1768961446129,-150.102,0.00017139,2]
[402899827,1768961446139,-775.944,0.00017139,2]
[402899828,1768961446148,-1576.0239926,0.00017139,7]
[402899829,1768961446159,-369.72,0.00017139,7]
[402900004,1768961832945,-1000.0,0.00010415,2]
[402900005,1768961834415,-1000.0,0.00010415,2]
[402900006,1768961835574,-1000.0,0.00010415,2]
[402900007,1768961839799,-500.0,0.00010311,2]
[402900009,1768961868497,-1000.0,0.00010208,2]
[402900010,1768961871530,-1000.0,0.00010208,2]
[402900011,1768961872773,-1000.0,0.00010208,2]
[402900012,1768961873940,-1000.0,0.00010208,2]
[402900013,1768961874964,-763.20885166,0.00010208,2]
[402900014,1768961874985,-236.79114834,0.00010311,2]
[402900015,1768961876429,-1000.0,0.00010311,2]
[402900016,1768961877609,-1000.0,0.00010311,2]
[402900017,1768961878833,-1000.0,0.00010311,2]
[402900018,1768961879974,-1000.0,0.00010311,2]
[402900019,1768961881069,-263.20885166,0.00010311,2]
[402900020,1768961881089,-190.20400774,0.00010468,2]
[402900025,1768961907250,-546.5871406,0.00012343,2]
[402900034,1768962468433,150.0,8.345e-05,2]
[402900035,1768962468837,150.0,8.666e-05,2]
[402900036,1768962472664,5000.0,8.876e-05,2]
[402900039,1768962480773,4700.01,8.876e-05,2]
[402900040,1768962480794,299.99,8.876e-05,2]
[402900041,1768962496827,5000.0,8.876e-05,2]
[402900054,1768962519134,5000.0,8.876e-05,2]
[402900055,1768962526963,5000.0,8.876e-05,2]
[402900056,1768962536088,0.01,6.705e-05,2]
[402900057,1768962536112,149.99,6.705e-05,2]
[402900058,1768962536500,150.0,7.024e-05,2]
[402900059,1768962536954,150.0,7.343e-05,2]
[402900060,1768962537371,150.0,7.663e-05,2]
[402900061,1768962537752,150.0,7.982e-05,2]
[402900062,1768962538148,150.0,8.301e-05,2]
[402900063,1768962538540,150.0,8.62e-05,2]
[402900129,1768962632551,-467.09929999,0.00011977,2]
[402900132,1768962632568,-4532.90070001,0.00011977,2]
[402900134,1768962632577,-589.0,0.00011977,2]
[402900136,1768962632586,-5000.0,0.00012098,2]
[402900137,1768962632595,-193.97286493,0.00012221,2]
[402900139,1768962632605,-1446.00923325,0.0001369,2]
[402900141,1768962632614,-228.88798061,0.00014221,2]
[402900143,1768962632624,-1000.0,0.00015218,2]
[402900145,1768962632633,-308.04818544,0.000154,2]
[402900147,1768962632642,-154.02409272,0.000154,2]
[402900149,1768962632652,-308.04818544,0.00015936,9]
[402900151,1768962632661,-160.0,0.00016,2]
[402900153,1768962632671,-160.0,0.00016,2]
[402900155,1768962632680,-160.0,0.00016,2]
[402900157,1768962632689,-160.0,0.00016,2]
[402900159,1768962632702,-263.8030963,0.00016221,2]
[402900161,1768962632711,-308.04818544,0.00016471,17]
[402900163,1768962632721,-189.56486123,0.00016928,2]
[402900165,1768962632730,-300.0,0.00016968,2]
[402900167,1768962632739,-189.56486122,0.00016969,2]
[402900169,1768962632752,-542.3005241,0.00016999,2]
[402900170,1768962632761,-500.0,0.00016999,2]
[402900171,1768962632770,-251.44891471,0.00016999,2]
[402900173,1768962632780,-200.0,0.00017,2]
[402900175,1768962632789,-200.0,0.00017,2]
[402900177,1768962632798,-200.0,0.00017,2]
[402900179,1768962632808,-200.0982317,0.00017,2]
[402900181,1768962632817,-200.0,0.00017,2]
[402900183,1768962632826,-200.0,0.00017,2]
[402900185,1768962632835,-200.0,0.00017,2]
[402900187,1768962632845,-200.0,0.00017,2]
[402900189,1768962632854,-200.0,0.00017,2]
[402900190,1768962632863,-200.0,0.00017,2]
[402900192,1768962632873,-210.27898526,0.00017,2]
[402900194,1768962632883,-88438.44026115,0.00017,2]
[402900253,1768962638222,-1540.74885193,0.00017,2]
[402900255,1768962638232,-308.04818544,0.00017007,25]
[402900258,1768962638242,-5000.0,0.00017009,2]
[402900259,1768962638251,-58804.35440562,0.0001701,3]
[402900261,1768962638261,-500.0,0.00017028,2]
[402900263,1768962638270,-350.909,0.00017029,2]
[402900266,1768962638281,-178.762,0.00017029,2]
[402900268,1768962638290,-467.01,0.00017029,3]
[402900270,1768962638299,-233.5,0.00017029,3]
[402900272,1768962638309,-700.53,0.00017029,3]
[402900274,1768962638318,-500.0,0.00017035,2]
[402900276,1768962638328,-500.0,0.00017038,2]
[402900278,1768962638337,-500.0,0.00017038,2]
[402900280,1768962638347,-500.0,0.00017038,2]
[402900282,1768962638357,-500.0,0.00017038,2]
[402900284,1768962638366,-500.0,0.00017038,2]
[402900286,1768962638375,-500.0,0.00017038,2]
[402900288,1768962638384,-504.02452176,0.00017038,2]
[402900290,1768962638394,-35411.11303525,0.00017039,2]
[402900292,1768962638406,-4090.97024984,0.00017039,2]
[402900294,1768962638417,-177633.76156568,0.00017039,2]
[402900337,1768962640820,-323.19020843,0.00017039,2]
[402900418,1768962646420,-466.63936327,0.00017035,2]
[402900420,1768962646432,-424.79945039,0.00017035,2]
[402900423,1768962646441,-180.23958609,0.00017037,2]
[402900424,1768962646450,-1123.95259925,0.00017039,2]
[402900576,1768962987962,150.0,6.778e-05,2]
[402900577,1768962988398,150.0,7.101e-05,2]
[402900578,1768963001854,1000.0,8.876e-05,2]
[402900579,1768963015128,1597.35,8.876e-05,2]
[402900600,1768963644438,-5000.0,0.0001513,2]
[402900601,1768963644459,-194.63120199,0.0001536,2]
[402900602,1768963644480,-300.0,0.00015436,2]
[402900603,1768963644501,-5956.6735061,0.00015437,2]
[402900604,1768963644521,-300.0,0.0001554,2]
[402900605,1768963644542,-646.0,0.00015614,2]
[402900606,1768963644562,-180.47408,0.00015744,2]
[402900607,1768963644582,-190.6217961,0.00015772,2]
[402900608,1768963644603,-4497.92449967,0.00016453,2]
[402900609,1768963644624,-150.0,0.00016453,2]
[402900610,1768963644644,-150.0,0.00016453,2]
[402900611,1768963644665,-150.0,0.00016453,2]
[402900612,1768963644687,-624.0,0.00016453,2]
[402900613,1768963644708,-1659.67491614,0.00016455,2]
[402900653,1768963832709,-421.5146181,0.0001575,2]
[402900655,1768963832720,-1216.5618108,0.0001575,2]
[402900657,1768963832729,-648.0,0.0001575,2]
[402900659,1768963832738,-154.50210319,0.00016281,2]
[402900661,1768963832747,-500.0,0.00016281,2]
[402900663,1768963832756,-150.0,0.00016281,2]
[402900665,1768963832765,-5000.0,0.0001629,2]
[402900667,1768963832775,-500.0,0.00016353,2]
[402900668,1768963832784,-500.0,0.00016353,2]
[402900671,1768963832793,-500.0,0.00016353,2]
[402900673,1768963832804,-500.0,0.00016353,2]
[402900674,1768963832812,-500.0,0.00016353,2]
[402900676,1768963832822,-500.0,0.00016353,2]
[402900678,1768963832831,-500.0,0.00016353,2]
[402900680,1768963832840,-500.0,0.00016353,2]
[402900682,1768963832849,-500.0,0.00016353,2]
[402900684,1768963832858,-500.0,0.00016353,2]
[402900686,1768963832867,-500.0,0.00016353,2]
[402900688,1768963832876,-500.0,0.00016353,2]
[402900691,1768963832886,-500.0,0.00016353,2]
[402900693,1768963832894,-500.0,0.00016353,2]
[402900694,1768963832904,-500.0,0.00016353,2]
[402900696,1768963832913,-500.0,0.00016353,2]
[402900698,1768963832922,-500.0,0.00016353,2]
[402900700,1768963832931,-500.0,0.00016353,2]
[402900703,1768963832943,-500.0,0.00016353,2]
[402900705,1768963832952,-500.0,0.00016353,2]
[402900707,1768963832961,-500.0,0.00016353,2]
[402900709,1768963832971,-488.20497465,0.00016354,2]
[402900711,1768963832980,-500.0,0.00016354,2]
[402900713,1768963832989,-581.76534473,0.00016354,2]
[402900715,1768963832998,-5000.0,0.00016354,2]
[402900716,1768963833007,-12202.07646291,0.00016355,2]
[402900717,1768963833019,-1038.72842286,0.00016355,2]
[402900730,1768963838554,-500.0,0.00016353,2]
[402900731,1768963838564,-500.0,0.00016353,2]
[402900732,1768963838573,-208.84418304,0.00016353,2]
[402900733,1768963838583,-291.15581696,0.00016353,2]
[402900735,1768963840795,-208.84418304,0.00016353,2]
[402900738,1768963840805,-320.7129822,0.00016353,2]
[402900760,1768963843604,-179.2870178,0.00016353,2]
[402900761,1768963843614,-306.99833834,0.00016353,2]
[402900762,1768963843623,-500.0,0.00016353,2]
[402900763,1768963843633,-500.0,0.00016353,2]
[402900764,1768963843642,-500.0,0.00016353,2]
[402900766,1768963843651,-500.0,0.00016353,2]
[402900767,1768963843660,-500.0,0.00016353,2]
[402900768,1768963843669,-500.0,0.00016353,2]
[402900769,1768963843679,-500.0,0.00016353,2]
[402900770,1768963843688,-500.0,0.00016353,2]
[402900771,1768963843697,-369.57445116,0.00016353,2]
[402900772,1768963843706,-500.0,0.00016353,2]
[402900773,1768963843715,-561.76475993,0.00016353,2]
[402900774,1768963843724,-500.0,0.00016353,2]
[402900775,1768963843733,-500.0,0.00016353,2]
[402900776,1768963843742,-438.54936516,0.00016353,2]
[402900777,1768963843751,-500.0,0.00016353,2]
[402900778,1768963843761,-500.0,0.00016353,2]
[402900779,1768963843770,-500.0,0.00016353,2]
[402900780,1768963843780,-500.0,0.00016353,2]
[402900781,1768963843789,-500.0,0.00016353,2]
[402900782,1768963843799,-500.0,0.00016353,2]
[402900783,1768963843808,-500.0,0.00016353,2]
[402900785,1768963843817,-500.0,0.00016353,2]
[402900787,1768963843827,-500.0,0.00016353,2]
[402900788,1768963843836,-500.0,0.00016353,2]
[402900789,1768963843845,-270.76890151,0.00016353,2]
[402900790,1768963843854,-500.0,0.00016353,2]
[402900791,1768963843862,-500.0,0.00016353,2]
[402900792,1768963843872,-500.0,0.00016353,2]
[402900793,1768963843881,-500.0,0.00016353,2]
[402900794,1768963843890,-500.0,0.00016353,2]
[402900795,1768963843899,-500.0,0.00016353,2]
[402900796,1768963843909,-500.0,0.00016353,2]
[402900797,1768963843918,-500.0,0.00016353,2]
[402900798,1768963843927,-500.0,0.00016353,2]
[402900799,1768963843936,-500.0,0.00016353,2]
[402900800,1768963843946,-500.0,0.00016353,2]
[402900801,1768963843955,-500.0,0.00016353,2]
[402900802,1768963843964,-500.0,0.00016353,2]
[402900803,1768963843973,-500.0,0.00016353,2]
[402900804,1768963843982,-500.0,0.00016353,2]
[402900805,1768963843991,-500.0,0.00016353,2]
[402900806,1768963844001,-500.0,0.00016353,2]
[402900807,1768963844010,-500.0,0.00016353,2]
[402900808,1768963844020,-500.0,0.00016353,2]
[402900809,1768963844030,-500.0,0.00016353,2]
[402900810,1768963844039,-500.0,0.00016353,2]
[402900811,1768963844050,-500.0,0.00016353,2]
[402900812,1768963844059,-367817.78682184,0.00016355,2]
[402900834,1768963846520,-87617.82147661,0.00016355,2]
[402900919,1768963889546,150.0,8.538e-05,2]
[402900920,1768963889974,150.0,8.944e-05,2]
[402900921,1768964053455,160.0,0.00014,2]
[402900922,1768964054020,160.0,0.00014,2]
[402900925,1768964732251,331.0,0.00014,7]
[402900926,1768964819132,-5000.0,0.00014749,2]
[402900927,1768964819152,-202.76608618,0.00014973,2]
[402900928,1768964819171,-3619.85199955,0.00014999,2]
[402900929,1768964819192,-500.0,0.00014999,2]
[402900930,1768964819213,-341.74348226,0.00014999,2]
[402900931,1768964819232,-257.23574131,0.00014999,2]
[402900932,1768964819253,-500.0,0.00014999,2]
[402900933,1768964819273,-270.94992946,0.00014999,2]